fUSD/lending_fUSD_20240714
["ID","MTS","AMOUNT","RATE_DAILY","PERIOD"]
[332056120,1720944670826,-1849.69,0.00013863,2]
[332056121,1720944670839,-1086.25,0.00013863,2]
[332056122,1720944670851,-728.76,0.00013863,2]
[332056123,1720944670862,-500.0,0.00013863,2]
[332056124,1720944670872,-500.0,0.00013863,2]
[332056125,1720944670882,-500.0,0.00013863,2]
[332056126,1720944670891,-889.43,0.00013863,2]
[332056127,1720944670901,-689.26,0.00013863,2]
[332056128,1720944670911,-500.0,0.00013863,2]
[332056129,1720944670921,-547.77,0.00013863,2]
[332056130,1720944670930,-500.0,0.00013863,2]
[332056131,1720944670940,-849.09,0.00013863,2]
[332056132,1720944670950,-500.0,0.00013863,2]
[332056133,1720944670960,-500.0,0.00013863,2]
[332056134,1720944670971,-500.0,0.00013863,2]
[332056135,1720944670981,-500.0,0.00013863,2]
[332056136,1720944670992,-500.0,0.00013863,2]
[332056137,1720944671002,-1481.68,0.00013863,2]
[332056138,1720944671201,-491.73141892,0.00013863,2]
[332056139,1720944671222,-500.0,0.00013863,2]
[332056140,1720944671233,-500.0,0.00013863,2]
[332056141,1720944671243,-1138.18,0.00013863,2]
[332056142,1720944671253,-651.49,0.00013863,2]
[332056143,1720944671264,-986.52,0.00013863,2]
[332056144,1720944671274,-687.54,0.00013863,2]
[332056145,1720944671285,-977.44,0.00013863,2]
[332056146,1720944671296,-500.0,0.00013863,2]
[332056147,1720944671305,-1150.17,0.00013863,2]
[332056148,1720944671314,-1114.28,0.00013863,2]
[332056149,1720944671324,-558.71,0.00013863,2]
[332056150,1720944671337,-832.08,0.00013863,2]
[332056151,1720944671349,-500.0,0.00013863,2]
[332056152,1720944671359,-500.0,0.00013863,2]
[332056153,1720944671369,-500.0,0.00013863,2]
[332056154,1720944671380,-334.85,0.00013863,2]
[332056155,1720944671391,-500.0,0.00013863,2]
[332056156,1720944671402,-500.0,0.00013863,2]
[332056157,1720944671414,-500.0,0.00013863,2]
[332056158,1720944671425,-1440.63,0.00013863,2]
[332056159,1720944671436,-698.88,0.00013863,2]
[332056160,1720944671447,-366.82,0.00013863,2]
[332056161,1720944671458,-500.0,0.00013863,2]
[332056162,1720944671467,-500.0,0.00013863,2]
[332056163,1720944671477,-500.0,0.00013863,2]
[332056164,1720944671486,-500.0,0.00013863,2]
[332056165,1720944671495,-500.0,0.00013863,2]
[332056166,1720944671504,-1816.1,0.00013863,2]
[332056167,1720944671513,-526.49,0.00013863,2]
[332056168,1720944671524,-539.78,0.00013863,2]
[332056169,1720944671534,-500.0,0.00013863,2]
[332056170,1720944671544,-1558.52,0.00013863,2]
[332056171,1720944671554,-500.0,0.00013863,2]
[332056172,1720944671563,-1030.23,0.00013863,2]
[332056173,1720944671573,-623.08,0.00013863,2]
[332056174,1720944671583,-500.0,0.00013863,2]
[332056175,1720944671592,-500.0,0.00013863,2]
[332056176,1720944671602,-500.0,0.00013863,2]
[332056177,1720944671613,-1931.11,0.00013863,2]
[332056178,1720944671623,-500.0,0.00013863,2]
[332056179,1720944671633,-500.0,0.00013863,2]
[332056180,1720944671642,-411.66,0.00013863,2]
[332056181,1720944671652,-772.51,0.00013863,2]
[332056182,1720944671663,-528.55,0.00013863,2]
[332056183,1720944671675,-723.02,0.00013863,2]
[332056184,1720944671684,-547.9,0.00013863,2]
[332056185,1720944671693,-1263.14,0.00013863,2]
[332056186,1720944671703,-594.4253944,0.00013863,2]
[332056187,1720944671713,-500.0,0.00013863,2]
[332056188,1720944671722,-500.0,0.00013863,2]
[332056189,1720944671731,-549.75,0.00013863,2]
[332056190,1720944671741,-515.44,0.00013863,2]
[332056191,1720944671750,-500.0,0.00013863,2]
[332056192,1720944671764,-1256.97,0.00013863,2]
[332056193,1720944671774,-500.0,0.00013863,2]
[332056194,1720944671783,-500.0,0.00013863,2]
[332056195,1720944671792,-500.0,0.00013863,2]
[332056196,1720944671802,-502.48,0.00013863,2]
[332056197,1720944671813,-500.0,0.00013863,2]
[332056198,1720944671822,-765.47,0.00013863,2]
[332056199,1720944671832,-500.0,0.00013863,2]
[332056200,1720944671844,-1089.42,0.00013863,2]
[332056201,1720944671854,-500.0,0.00013863,2]
[332056202,1720944671863,-500.0,0.00013863,2]
[332056203,1720944671874,-702.42,0.00013863,2]
[332056204,1720944671884,-500.0,0.00013863,2]
[332056205,1720944671893,-500.0,0.00013863,2]
[332056206,1720944671903,-1029.37,0.00013863,2]
[332056207,1720944671913,-500.0,0.00013863,2]
[332056208,1720944671922,-500.0,0.00013863,2]
[332056209,1720944671932,-1188.58,0.00013863,2]
[332056210,1720944671942,-878.86,0.00013863,2]
[332056211,1720944671951,-1040.9,0.00013863,2]
[332056212,1720944671960,-500.0,0.00013863,2]
[332056213,1720944671970,-500.0,0.00013863,2]
[332056214,1720944671979,-500.0,0.00013863,2]
[332056215,1720944671989,-500.0,0.00013863,2]
[332056216,1720944671998,-1332.58,0.00013863,2]
[332056217,1720944672009,-500.0,0.00013863,2]
[332056218,1720944672021,-500.0,0.00013863,2]
[332056219,1720944672032,-644.11,0.00013863,2]
[332056220,1720944672043,-695.94,0.00013863,2]
[332056221,1720944672054,-500.0,0.00013863,2]
[332056222,1720944672063,-757.44,0.00013863,2]
[332056223,1720944672073,-1082.22,0.00013863,2]
[332056224,1720944672082,-748.29,0.00013863,2]
[332056225,1720944672091,-766.6,0.00013863,2]
[332056226,1720944672101,-1194.25,0.00013863,2]
[332056227,1720944672111,-739.05,0.00013863,2]
[332056228,1720944672119,-500.0,0.00013863,2]
[332056229,1720944672129,-828.75,0.00013863,2]
[332056230,1720944672138,-500.0,0.00013863,2]
[332056231,1720944672147,-500.0,0.00013863,2]
[332056232,1720944672157,-218.62747066,0.00013863,2]
[332056233,1720944672167,-831.45,0.00013863,2]
[332056234,1720944672176,-500.0,0.00013863,2]
[332056235,1720944672186,-500.0,0.00013863,2]
[332056236,1720944672195,-500.0,0.00013863,2]
[332056237,1720944672204,-849.09,0.00013863,2]
[332056238,1720944672214,-543.18,0.00013863,2]
[332056239,1720944672223,-816.29,0.00013863,2]
[332056240,1720944672233,-500.0,0.00013863,2]
[332056241,1720944672243,-500.0,0.00013863,2]
[332056242,1720944672254,-234.9,0.00013863,2]
[332056243,1720944672264,-500.0,0.00013863,2]
[332056244,1720944672273,-1015.12,0.00013863,2]
[332056245,1720944672284,-1008.51,0.00013863,2]
[332056246,1720944672295,-596.08,0.00013863,2]
[332056247,1720944672304,-500.0,0.00013863,2]
[332056248,1720944672314,-500.0,0.00013863,2]
[332056249,1720944672323,-984.1,0.00013863,2]
[332056250,1720944672332,-500.0,0.00013863,2]
[332056251,1720944672342,-862.18,0.00013863,2]
[332056252,1720944672352,-785.47,0.00013863,2]
[332056253,1720944672362,-500.0,0.00013863,2]
[332056254,1720944672373,-500.0,0.00013863,2]
[332056255,1720944672383,-981.46,0.00013863,2]
[332056256,1720944672394,-242.20749743,0.00013863,2]
[332056257,1720944672405,-1104.22,0.00013863,2]
[332056258,1720944672415,-500.0,0.00013863,2]
[332056259,1720944672426,-703.61,0.00013863,2]
[332056260,1720944672437,-1735.14,0.00013863,2]
[332056261,1720944672446,-500.0,0.00013863,2]
[332056262,1720944672457,-634.42,0.00013863,2]
[332056263,1720944672469,-500.0,0.00013863,2]
[332056264,1720944672480,-704.83,0.00013863,2]
[332056265,1720944672491,-500.0,0.00013863,2]
[332056266,1720944672500,-500.0,0.00013863,2]
[332056267,1720944672510,-688.54,0.00013863,2]
[332056268,1720944672520,-730.8,0.00013863,2]
[332056269,1720944672531,-699.49,0.00013863,2]
[332056270,1720944672541,-500.0,0.00013863,2]
[332056271,1720944672551,-1161.87,0.00013863,2]
[332056272,1720944672562,-500.0,0.00013863,2]
[332056273,1720944672573,-500.0,0.00013863,2]
[332056274,1720944672584,-981.53,0.00013863,2]
[332056275,1720944672594,-500.0,0.00013863,2]
[332056276,1720944672605,-542.72,0.00013863,2]
[332056277,1720944672614,-814.22,0.00013863,2]
[332056278,1720944672623,-733.24,0.00013863,2]
[332056279,1720944672633,-900.42,0.00013863,2]
[332056280,1720944672642,-500.0,0.00013863,2]
[332056281,1720944672651,-1126.21,0.00013863,2]
[332056282,1720944672660,-500.0,0.00013863,2]
[332056283,1720944672670,-665.99,0.00013863,2]
[332056284,1720944672679,-309.692689,0.00013863,2]
[332056285,1720944672689,-546.39,0.00013863,2]
[332056286,1720944672698,-697.26,0.00013863,2]
[332056287,1720944672707,-500.0,0.00013863,2]
[332056288,1720944672717,-686.52,0.00013863,2]
[332056289,1720944672726,-697.79,0.00013863,2]
[332056290,1720944672735,-735.3,0.00013863,2]
[332056291,1720944672744,-500.0,0.00013863,2]
[332056292,1720944672756,-497.72,0.00013863,2]
[332056293,1720944672765,-500.0,0.00013863,2]
[332056294,1720944672775,-500.0,0.00013863,2]
[332056295,1720944672784,-1039.36,0.00013863,2]
[332056296,1720944672795,-1038.98,0.00013863,2]
[332056297,1720944672804,-500.0,0.00013863,2]
[332056298,1720944672814,-588.86,0.00013863,2]
[332056299,1720944672824,-500.0,0.00013863,2]
[332056300,1720944672835,-1568.94,0.00013863,2]
[332056301,1720944672845,-749.01,0.00013863,2]
[332056302,1720944672854,-826.74,0.00013863,2]
[332056303,1720944672864,-966.66,0.00013863,2]
[332056304,1720944672873,-716.2,0.00013863,2]
[332056305,1720944672883,-1331.68,0.00013863,2]
[332056306,1720944672892,-1142.0,0.00013863,2]
[332056307,1720944672901,-857.39,0.00013863,2]
[332056308,1720944672911,-500.0,0.00013863,2]
[332056309,1720944672922,-691.76,0.00013863,2]
[332056310,1720944672931,-1459.14,0.00013863,2]
[332056311,1720944672941,-500.0,0.00013863,2]
[332056312,1720944672950,-1026.42,0.00013863,2]
[332056313,1720944672960,-1139.81,0.00013863,2]
[332056314,1720944672969,-634.68,0.00013863,2]
[332056315,1720944672978,-500.0,0.00013863,2]
[332056316,1720944672988,-767.6,0.00013863,2]
[332056317,1720944672998,-500.0,0.00013863,2]
[332056318,1720944673009,-500.0,0.00013863,2]
[332056319,1720944673018,-830.17,0.00013863,2]
[332056320,1720944673028,-624.62,0.00013863,2]
[332056321,1720944673040,-573.8,0.00013863,2]
[332056322,1720944673051,-500.0,0.00013863,2]
[332056323,1720944673061,-500.0,0.00013863,2]
[332056324,1720944673071,-1206.4,0.00013863,2]
[332056325,1720944673083,-500.0,0.00013863,2]
[332056326,1720944673093,-669.03,0.00013863,2]
[332056327,1720944673104,-500.0,0.00013863,2]
[332056328,1720944673115,-500.0,0.00013863,2]
[332056329,1720944673127,-573.27,0.00013863,2]
[332056330,1720944673137,-500.0,0.00013863,2]
[332056331,1720944673148,-1222.83,0.00013863,2]
[332056332,1720944673159,-872.95,0.00013863,2]
[332056333,1720944673170,-500.0,0.00013863,2]
[332056334,1720944673182,-500.0,0.00013863,2]
[332056335,1720944673191,-500.0,0.00013863,2]
[332056336,1720944673201,-855.07,0.00013863,2]
[332056337,1720944673211,-626.86,0.00013863,2]
[332056338,1720944673221,-500.0,0.00013863,2]
[332056339,1720944673232,-500.0,0.00013863,2]
[332056340,1720944673241,-500.0,0.00013863,2]
[332056341,1720944673250,-534.51,0.00013863,2]
[332056342,1720944673260,-500.0,0.00013863,2]
[332056343,1720944673270,-688.23,0.00013863,2]
[332056344,1720944673280,-500.0,0.00013863,2]
[332056345,1720944673290,-650.58,0.00013863,2]
[332056346,1720944673299,-1076.79,0.00013863,2]
[332056347,1720944673310,-1035.73,0.00013863,2]
[332056348,1720944673319,-500.0,0.00013863,2]
[332056349,1720944673329,-500.0,0.00013863,2]
[332056350,1720944673341,-500.0,0.00013863,2]
[332056351,1720944673350,-558.02,0.00013863,2]
[332056352,1720944673360,-636.95,0.00013863,2]
[332056353,1720944673369,-536.21,0.00013863,2]
[332056354,1720944673378,-656.29,0.00013863,2]
[332056355,1720944673387,-500.0,0.00013863,2]
[332056356,1720944673396,-612.67,0.00013863,2]
[332056357,1720944673405,-500.0,0.00013863,2]
[332056358,1720944673414,-1545.79,0.00013863,2]
[332056359,1720944673423,-742.47,0.00013863,2]
[332056360,1720944673434,-500.0,0.00013863,2]
[332056361,1720944673444,-1159.61,0.00013863,2]
[332056362,1720944673455,-537.33,0.00013863,2]
[332056363,1720944673466,-573.62,0.00013863,2]
[332056364,1720944673477,-1906.72,0.00013863,2]
[332056365,1720944673488,-500.0,0.00013863,2]
[332056366,1720944673497,-500.0,0.00013863,2]
[332056367,1720944673507,-500.0,0.00013863,2]
[332056368,1720944673518,-500.0,0.00013863,2]
[332056369,1720944673528,-584.88,0.00013863,2]
[332056370,1720944673538,-514.79,0.00013863,2]
[332056371,1720944673547,-555.56,0.00013863,2]
[332056372,1720944673557,-572.39,0.00013863,2]
[332056373,1720944673566,-757.5,0.00013863,2]
[332056374,1720944673576,-1339.73,0.00013863,2]
[332056375,1720944673586,-500.0,0.00013863,2]
[332056376,1720944673595,-764.15,0.00013863,2]
[332056377,1720944673605,-1239.65,0.00013863,2]
[332056378,1720944673614,-1576.22,0.00013863,2]
[332056379,1720944673623,-623.47,0.00013863,2]
[332056380,1720944673633,-1012.69,0.00013863,2]
[332056381,1720944673642,-500.0,0.00013863,2]
[332056382,1720944673651,-955.24,0.00013863,2]
[332056383,1720944673715,-965.64,0.00013863,2]
[332056384,1720944673725,-1041.62,0.00013863,2]
[332056385,1720944673735,-500.0,0.00013863,2]
[332056386,1720944673745,-1265.69,0.00013863,2]
[332056387,1720944673757,-969.62,0.00013863,2]
[332056388,1720944673768,-515.28,0.00013863,2]
[332056389,1720944673778,-1377.61,0.00013863,2]
[332056390,1720944673787,-973.16,0.00013863,2]
[332056391,1720944673798,-1828.8,0.00013863,2]
[332056392,1720944673808,-500.0,0.00013863,2]
[332056393,1720944673817,-746.21,0.00013863,2]
[332056394,1720944673826,-500.0,0.00013863,2]
[332056395,1720944673839,-549.59,0.00013863,2]
[332056396,1720944673848,-500.0,0.00013863,2]
[332056397,1720944673858,-500.0,0.00013863,2]
[332056398,1720944673867,-588.1,0.00013863,2]
[332056399,1720944673878,-1001.22,0.00013863,2]
[332056400,1720944673887,-500.0,0.00013863,2]
[332056401,1720944673896,-870.2,0.00013863,2]
[332056402,1720944673905,-500.0,0.00013863,2]
[332056403,1720944673916,-568.14,0.00013863,2]
[332056404,1720944673925,-500.0,0.00013863,2]
[332056405,1720944673936,-608.64,0.00013863,2]
[332056406,1720944673947,-549.39,0.00013863,2]
[332056407,1720944673958,-500.0,0.00013863,2]
[332056408,1720944673967,-500.0,0.00013863,2]
[332056409,1720944673977,-727.25,0.00013863,2]
[332056410,1720944673989,-500.0,0.00013863,2]
[332056411,1720944673999,-500.0,0.00013863,2]
[332056412,1720944674009,-739.32,0.00013863,2]
[332056413,1720944674019,-1171.55,0.00013863,2]
[332056414,1720944674028,-1231.66,0.00013863,2]
[332056415,1720944674038,-500.0,0.00013863,2]
[332056416,1720944674047,-500.0,0.00013863,2]
[332056417,1720944674057,-8626.36,0.00013863,2]
[332056418,1720944674067,-500.0,0.00013863,2]
[332056419,1720944674076,-500.0,0.00013863,2]
[332056420,1720944674085,-619.66364235,0.00013863,2]
[332056421,1720944674094,-908.97,0.00013863,2]
[332056422,1720944674105,-500.0,0.00013863,2]
[332056423,1720944674116,-500.0,0.00013863,2]
[332056424,1720944674127,-802.45,0.00013863,2]
[332056425,1720944674137,-1685.54,0.00013863,2]
[332056426,1720944674146,-992.06,0.00013863,2]
[332056427,1720944674156,-1561.02,0.00013863,2]
[332056428,1720944674166,-812.48,0.00013863,2]
[332056429,1720944674177,-500.0,0.00013863,2]
[332056430,1720944674186,-1235.59,0.00013863,2]
[332056431,1720944674195,-500.0,0.00013863,2]
[332056432,1720944674204,-500.0,0.00013863,2]
[332056433,1720944674214,-979.82,0.00013863,2]
[332056434,1720944674224,-500.0,0.00013863,2]
[332056435,1720944674234,-1004.21,0.00013863,2]
[332056436,1720944674244,-1016.96,0.00013863,2]
[332056437,1720944674254,-444.23984195,0.00013863,2]
[332056438,1720944674265,-1044.15,0.00013863,2]
[332056439,1720944674275,-1311.36,0.00013863,2]
[332056440,1720944674285,-500.0,0.00013863,2]
[332056441,1720944674294,-500.0,0.00013863,2]
[332056442,1720944674304,-672.14,0.00013863,2]
[332056443,1720944674314,-1294.38,0.00013863,2]
[332056444,1720944674324,-707.72,0.00013863,2]
[332056445,1720944674335,-726.21,0.00013863,2]
[332056446,1720944674344,-500.0,0.00013863,2]
[332056447,1720944674354,-1022.59,0.00013863,2]
[332056448,1720944674363,-1251.7,0.00013863,2]
[332056449,1720944674373,-500.0,0.00013863,2]
[332056450,1720944674382,-500.0,0.00013863,2]
[332056451,1720944674391,-1131.2,0.00013863,2]
[332056452,1720944674401,-728.87,0.00013863,2]
[332056453,1720944674410,-577.16,0.00013863,2]
[332056454,1720944674419,-1299.6,0.00013863,2]
[332056455,1720944674431,-500.0,0.00013863,2]
[332056456,1720944674441,-1018.01,0.00013863,2]
[332056457,1720944674452,-3892.56,0.00013863,2]
[332056458,1720944674462,-295.72294322,0.00013863,2]
[332056459,1720944674472,-826.16,0.00013863,2]
[332056460,1720944674482,-596.53,0.00013863,2]
[332056461,1720944674491,-1493.87,0.00013863,2]
[332056462,1720944674500,-637.56,0.00013863,2]
[332056463,1720944674512,-1688.78,0.00013863,2]
[332056464,1720944674521,-500.0,0.00013863,2]
[332056465,1720944674531,-773.37,0.00013863,2]
[332056466,1720944674541,-1311.12,0.00013863,2]
[332056467,1720944674551,-500.0,0.00013863,2]
[332056468,1720944674562,-623.47,0.00013863,2]
[332056469,1720944674571,-4364.13,0.00013863,2]
[332056470,1720944674581,-1332.21,0.00013863,2]
[332056471,1720944674591,-1655.02,0.00013863,2]
[332056472,1720944674601,-500.0,0.00013863,2]
[332056473,1720944674610,-670.9,0.00013863,2]
[332056474,1720944674620,-1396.58,0.00013863,2]
[332056475,1720944674629,-672.79,0.00013863,2]
[332056476,1720944674639,-515.71,0.00013863,2]
[332056477,1720944674648,-3898.98,0.00013863,2]
[332056478,1720944674658,-2643.16,0.00013863,2]
[332056479,1720944674669,-601.97,0.00013863,2]
[332056480,1720944674679,-500.0,0.00013863,2]
[332056481,1720944674688,-2195.08,0.00013863,2]
[332056482,1720944674699,-500.0,0.00013863,2]
[332056483,1720944674708,-828.77,0.00013863,2]
[332056484,1720944674717,-636.92,0.00013863,2]
[332056485,1720944674729,-500.0,0.00013863,2]
[332056486,1720944674739,-1608.4,0.00013863,2]
[332056487,1720944674749,-500.0,0.00013863,2]
[332056488,1720944674763,-809.07,0.00013863,2]
[332056489,1720944674773,-500.0,0.00013863,2]
[332056490,1720944674783,-500.0,0.00013863,2]
[332056491,1720944674792,-1712.22,0.00013863,2]
[332056492,1720944674804,-1293.57,0.00013863,2]
[332056493,1720944674814,-672.88,0.00013863,2]
[332056494,1720944674823,-500.0,0.00013863,2]
[332056495,1720944674834,-500.0,0.00013863,2]
[332056496,1720944674844,-570.52,0.00013863,2]
[332056497,1720944674853,-500.0,0.00013863,2]
[332056498,1720944674863,-1374.17,0.00013863,2]
[332056499,1720944674872,-500.0,0.00013863,2]
[332056500,1720944674881,-660.62,0.00013863,2]
[332056501,1720944674890,-500.0,0.00013863,2]
[332056502,1720944674899,-500.0,0.00013863,2]
[332056503,1720944674909,-916.16,0.00013863,2]
[332056504,1720944674918,-3321.54,0.00013863,2]
[332056505,1720944674927,-557.41,0.00013863,2]
[332056506,1720944674937,-500.0,0.00013863,2]
[332056507,1720944674946,-500.0,0.00013863,2]
[332056508,1720944674955,-1225.96,0.00013863,2]
[332056509,1720944674964,-500.0,0.00013863,2]
[332056510,1720944674974,-1555.82,0.00013863,2]
[332056511,1720944674983,-500.0,0.00013863,2]
[332056512,1720944674993,-500.0,0.00013863,2]
[332056513,1720944675002,-666.72,0.00013863,2]
[332056514,1720944675012,-1050.22,0.00013863,2]
[332056515,1720944675021,-759.86,0.00013863,2]
[332056516,1720944675030,-500.0,0.00013863,2]
[332056517,1720944675039,-500.0,0.00013863,2]
[332056518,1720944675048,-500.0,0.00013863,2]
[332056519,1720944675059,-672.62,0.00013863,2]
[332056520,1720944675068,-1156.45,0.00013863,2]
[332056521,1720944675077,-872.09,0.00013863,2]
[332056522,1720944675087,-500.0,0.00013863,2]
[332056523,1720944675097,-7925.43,0.00013863,2]
[332056524,1720944675106,-5913.14,0.00013863,2]
[332056525,1720944675116,-500.0,0.00013863,2]
[332056526,1720944675125,-500.0,0.00013863,2]
[332056527,1720944675135,-971.84,0.00013863,2]
[332056528,1720944675144,-843.25,0.00013863,2]
[332056529,1720944675153,-665.88,0.00013863,2]
[332056530,1720944675163,-500.0,0.00013863,2]
[332056531,1720944675172,-1558.59,0.00013863,2]
[332056532,1720944675182,-500.0,0.00013863,2]
[332056533,1720944675192,-1300.15,0.00013863,2]
[332056534,1720944675201,-939.77,0.00013863,2]
[332056535,1720944675211,-500.0,0.00013863,2]
[332056536,1720944675221,-500.0,0.00013863,2]
[332056537,1720944675230,-1088.57,0.00013863,2]
[332056538,1720944675240,-984.05,0.00013863,2]
[332056539,1720944675250,-458.62298373,0.00013863,2]
[332056540,1720944675261,-552.77,0.00013863,2]
[332056541,1720944675273,-500.0,0.00013863,2]
[332056542,1720944675283,-572.45,0.00013863,2]
[332056543,1720944675292,-500.0,0.00013863,2]
[332056544,1720944675303,-500.0,0.00013863,2]
[332056545,1720944675312,-500.0,0.00013863,2]
[332056546,1720944675321,-1115.08,0.00013863,2]
[332056547,1720944675331,-933.01,0.00013863,2]
[332056548,1720944675340,-500.0,0.00013863,2]
[332056549,1720944675350,-500.0,0.00013863,2]
[332056550,1720944675359,-500.0,0.00013863,2]
[332056551,1720944675369,-500.0,0.00013874,2]
[332056552,1720944675378,-500.0,0.00013887,2]
[332056553,1720944675388,-159.1434954,0.00013889,2]
[332056554,1720944675397,-338.28166204,0.0001389,2]
[332056555,1720944675407,-514.01,0.0001389,2]
[332056556,1720944675417,-514.01,0.0001389,2]
[332056557,1720944675427,-155.0,0.00013899,2]
[332056558,1720944675436,-196.49779594,0.00013899,2]
[332056559,1720944675445,-196.67870618,0.00013899,2]
[332056560,1720944675455,-200.03589647,0.00013899,2]
[332056561,1720944675464,-155.68074044,0.00013899,2]
[332056562,1720944675473,-114708.04868509,0.000139,2]
[332056563,1720944675923,-3922.53151645,0.000139,2]
[332056564,1720944676551,-714.21663336,0.000139,2]
[332056565,1720944676565,-5071.43030025,0.000139,2]
[332056566,1720944676580,-3539.2186,0.000139,2]
[332056567,1720944676608,-72285.40590301,0.000139,2]
[332056568,1720944676620,-3896.57759999,0.000139,2]
[332056569,1720944676632,-311.65,0.000139,2]
[332056570,1720944676662,-265.5900331,0.000139,2]
[332056571,1720944676673,-1348.78846674,0.000139,2]
[332056572,1720944678473,-432.07,0.00013698,2]
[332056573,1720944678483,-500.0,0.00013698,2]
[332056574,1720944678493,-500.0,0.00013698,2]
[332056575,1720944678503,-500.0,0.00013698,2]
[332056576,1720944678512,-500.0,0.00013698,2]
[332056577,1720944678521,-188.96240152,0.00013698,2]
[332056578,1720944678531,-500.0,0.00013753,2]
[332056579,1720944678540,-500.0,0.00013753,2]
[332056580,1720944678549,-500.0,0.00013753,2]
[332056581,1720944678559,-2072.84481848,0.0001379,2]
[332056582,1720944678583,-176.8,0.00013753,2]
[332056583,1720944678593,-1230.2,0.0001379,2]
[332056584,1720944678604,-4704.000003,0.0001379,2]
[332056585,1720944678616,-15734.20194805,0.0001379,2]
[332056586,1720944678627,-5967.57370409,0.0001379,2]
[332056587,1720944678638,-3097.70689365,0.0001379,2]
[332056588,1720944679650,-258.25668062,0.00013698,2]
[332056589,1720944679662,-241.74331938,0.00013698,2]
[332056590,1720944679672,-500.0,0.00013698,2]
[332056591,1720944679681,-500.0,0.00013698,2]
[332056592,1720944679691,-500.0,0.00013698,2]
[332056593,1720944679700,-500.0,0.00013698,2]
[332056594,1720944679710,-500.0,0.00013698,2]
[332056595,1720944679720,-271.14720641,0.00013698,2]
[332056596,1720944679744,-228.85279359,0.00013698,2]
[332056597,1720944679757,-43.52220641,0.00013698,2]
[332056598,1720944683134,255.9328,0.00010997,2]
[332056599,1720944758173,2700.0,0.00027,120]
[332056600,1720944802284,500.0,0.00025571,120]
[332056601,1720944802695,205.685915,0.00026656,120]
[332056602,1720944840718,1650.0,0.00026,120]
[332056603,1720944843744,368.28,0.00010906,2]
[332056605,1720944908281,433.56,0.00026986,120]
[332056606,1720945008742,167.74,0.00010959,2]
[332056607,1720945019274,838.72,0.00010959,2]
[332056608,1720945134156,2800.0,0.00027,120]
[332056610,1720945381939,1020.6196089,0.00024,60]
[332056611,1720945383094,349.86,0.00010065,2]
[332057197,1720945702708,150.0,0.00025,60]
[332057205,1720945780490,721.34365302,0.00010998,2]
[332057224,1720945831601,-1216.08294711,0.00011098,2]
[332057225,1720945831611,-48.83918437,0.00011098,2]
[332057226,1720945831623,-106.16081563,0.00011098,2]
[332057227,1720945831634,-379.83910076,0.00011098,2]
[332057228,1720945831643,-196.98581855,0.00011098,2]
[332057229,1720945831653,-120.70611825,0.00011098,2]
[332057230,1720945831664,-177.34131159,0.00011098,2]
[332057231,1720945831674,-155.0,0.00011098,2]